bitfinex/quotes_SOLUSD_20251231
["timestamp","ask_amount","ask_price","bid_price","bid_amount"]
[1767168611149,5.92726809,126.25,126.23,2.73792346]
[1767168611335,15.03,126.26,126.23,2.73792346]
[1767168612153,0.61,126.27,126.24,2.73792346]
[1767168613066,2.63792346,126.27,126.24,2.73792346]
[1767168613967,0.61,126.27,126.24,2.73792346]
[1767168614169,0.61,126.27,126.24,0.71]
[1767168614342,0.61,126.27,126.24,2.73792346]
[1767168614868,10.55749642,126.27,126.24,0.71]
[1767168616052,2.02792346,126.26,126.22,2.73792346]
[1767168616252,2.63792346,126.26,126.22,2.73792346]
[1767168616638,2.02792346,126.26,126.22,2.73792346]
[1767168616840,0.61,126.25,126.22,2.73792346]
[1767168619759,0.61,126.25,126.22,2.02792346]
[1767168619965,0.61,126.25,126.22,2.68792346]
[1767168620438,0.61,126.25,126.22,0.66]
[1767168621469,0.61,126.25,126.22,2.68792346]
[1767168623673,0.61,126.25,126.22,0.66]
[1767168623854,10.5587585,126.25,126.22,0.66]
[1767168624055,24.9587585,126.25,126.22,0.66]
[1767168624451,0.61,126.24,126.21,2.68792346]
[1767168626276,0.61,126.24,126.21,0.66]
[1767168626571,0.61,126.24,126.21,2.68792346]
[1767168628173,0.61,126.24,126.18,10.37806183]
[1767168628374,0.61,126.24,126.21,1.11e-06]
[1767168630371,0.61,126.24,126.21,0.66000111]
[1767168631186,0.61,126.24,126.2,0.66]
[1767168631492,0.61,126.24,126.18,2.02792346]
[1767168631493,2.71792346,126.22,126.18,2.02792346]
[1767168632173,14.42,126.23,126.14,22.54747631]
[1767168632174,0.69,126.2,126.14,22.54747631]
[1767168632384,9.95196927,126.2,126.16,2.02792346]
[1767168632554,2.71792346,126.19,126.15,2.02792346]
[1767168632759,0.69,126.18,126.15,2.02792346]
[1767168633483,0.69,126.18,126.15,2.68792346]
[1767168634480,2.71792346,126.18,126.15,0.66]
[1767168635066,0.69,126.18,126.15,2.68792346]
[1767168635467,0.69,126.17,126.14,2.88792346]
[1767168635867,0.69,126.16,126.14,0.2]
[1767168636058,0.69,126.18,126.15,2.68792346]
[1767168638789,0.69,126.19,126.16,2.68792346]
[1767168641489,0.69,126.19,126.16,2.02792346]
[1767168642088,0.69,126.19,126.16,2.68792346]
[1767168642291,0.69,126.17,126.14,2.88792346]
[1767168642585,0.69,126.17,126.15,2.02792346]
[1767168643183,0.69,126.16,126.14,0.2]
[1767168643489,0.69,126.15,126.14,0.2]
[1767168644079,0.59,126.14,126.12,0.2]
[1767168644272,0.39,126.13,126.11,0.2]
[1767168644666,2.02792346,126.14,126.11,0.2]
[1767168644878,2.41792346,126.14,126.11,0.2]
[1767168645277,10.34562707,126.14,126.11,0.2]
[1767168645481,0.39,126.12,126.11,0.1]
[1767168645883,2.02792346,126.13,126.11,0.1]
[1767168646074,2.31792346,126.13,126.11,0.1]
[1767168646399,2e-08,126.12,126.1,0.2]
[1767168647372,2.02792346,126.13,126.1,0.2]
[1767168647580,22.34770361,126.14,126.11,2.69792346]
[1767168647581,14.42,126.14,126.11,2.69792346]
[1767168648011,14.42,126.14,126.11,0.67]
[1767168648199,9.95511847,126.15,126.11,2.69792346]
[1767168648387,24.37511847,126.15,126.11,2.69792346]
[1767168649303,14.42,126.15,126.12,2.02792346]
[1767168649501,16.44792346,126.15,126.12,2.02792346]
[1767168649672,2.02792346,126.17,126.13,2.69792346]
[1767168649876,2.02792346,126.17,126.13,0.67]
[1767168650093,9.95379422,126.17,126.13,2.69792346]
[1767168650778,9.95379422,126.17,126.14,0.67]
[1767168651100,9.95379422,126.17,126.13,2.69792346]
[1767168651895,2.02792346,126.17,126.13,2.69792346]
[1767168652305,24.37343866,126.18,126.14,2.69792346]
[1767168652605,25.51756499,126.18,126.14,3.84204979]
[1767168653510,3.17204979,126.17,126.14,0.67]
[1767168654204,17.59204979,126.18,126.15,0.67]
[1767168656881,25.51731708,126.18,126.15,0.67]
[1767168663013,3.17204979,126.17,126.15,0.67]
[1767168663609,25.51731708,126.18,126.15,0.67]
[1767168665106,11.0971482,126.19,126.16,3.87204979]
[1767168665703,14.42,126.21,126.19,0.7]
[1767168665879,14.42,126.21,126.18,3.87204979]
[1767168666084,17.59204979,126.21,126.18,0.7]
[1767168666480,25.5157861,126.21,126.18,0.7]
[1767168670810,11.09598933,126.2,126.18,0.7]
[1767168670993,3.17204979,126.19,126.16,0.7]
[1767168671195,3.17204979,126.18,126.16,0.7]
[1767168674033,17.59204979,126.19,126.16,0.7]
[1767168675022,25.51664301,126.19,126.16,0.7]
[1767168676423,25.51664301,126.19,126.15,0.68]
[1767168676998,3.17204979,126.18,126.15,0.68]
[1767168682225,25.51664301,126.19,126.15,0.68]
[1767168684529,25.51664301,126.19,126.15,3.85204979]
[1767168685216,25.51664301,126.19,126.16,0.68]
[1767168691433,5.93180548,126.18,126.16,0.68]
[1767168691732,25.51664301,126.19,126.16,0.68]
[1767168691931,5.9318068,126.18,126.16,0.68]
[1767168692127,25.51664301,126.19,126.16,0.68]
[1767168692335,5.93180548,126.18,126.16,0.68]
[1767168692633,25.51664301,126.19,126.16,0.68]
[1767168692834,5.93437147,126.18,126.16,0.68]
[1767168693021,25.51664301,126.19,126.16,0.68]
[1767168693220,5.93437147,126.18,126.16,0.68]
[1767168693418,25.51664301,126.19,126.16,0.68]
[1767168693718,5.93671619,126.18,126.16,0.68]
[1767168693917,25.51664301,126.19,126.16,0.68]
[1767168694107,5.93671751,126.18,126.16,0.68]
[1767168694306,25.51664301,126.19,126.16,0.68]
[1767168694505,5.9392073,126.18,126.16,0.68]
[1767168694737,25.51664301,126.19,126.16,0.68]
[1767168694906,5.93920598,126.18,126.16,0.68]
[1767168695107,25.51664301,126.19,126.16,0.68]
[1767168695332,5.93920598,126.18,126.16,0.68]
[1767168695533,25.51664301,126.19,126.16,0.68]
[1767168695733,25.51664301,126.19,126.11,0.68]
[1767168695734,3.17204979,126.17,126.11,0.68]
[1767168695932,9.11208998,126.16,126.12,3.17204979]
[1767168696106,5.94122168,126.15,126.12,3.17204979]
[1767168696311,3.20204979,126.16,126.12,3.17204979]
[1767168696533,5.94129651,126.15,126.12,3.17204979]
[1767168696834,3.20204979,126.16,126.12,3.17204979]
[1767168697007,5.94129651,126.15,126.12,3.17204979]
[1767168697208,3.20204979,126.16,126.12,3.17204979]
[1767168697414,5.94129651,126.15,126.12,3.17204979]
[1767168697709,3.20204979,126.16,126.12,3.17204979]
[1767168697907,5.94137391,126.15,126.13,0.68]
[1767168698110,3.20204979,126.16,126.13,0.68]
[1767168698313,5.94137126,126.15,126.13,0.68]
[1767168698527,3.20204979,126.16,126.13,0.68]
[1767168698736,5.94143988,126.15,126.13,0.68]
[1767168698937,3.20204979,126.16,126.13,0.68]
[1767168699240,5.94143856,126.15,126.13,0.68]
[1767168699440,3.20204979,126.16,126.13,0.68]
[1767168699735,5.94113081,126.15,126.13,0.68]
[1767168700035,3.20204979,126.16,126.13,0.68]
[1767168700237,5.94113081,126.15,126.13,0.68]
[1767168700406,3.20204979,126.14,126.11,0.68]
[1767168700611,3.17204979,126.12,126.1,0.88]
[1767168701019,17.59204979,126.13,126.11,0.68]
[1767168701235,14.42,126.13,126.11,0.68]
[1767168702938,3.20204979,126.12,126.1,0.2]
[1767168703130,3.17204979,126.12,126.1,0.2]
[1767168703521,3.17204979,126.12,126.1,0.88]
[1767168705236,17.62204979,126.13,126.1,0.88]
[1767168705538,14.45,126.13,126.1,4.05204979]
[1767168709144,17.62204979,126.13,126.1,0.88]
[1767168711228,25.5209032,126.13,126.1,0.17]
[1767168711435,3.17204979,126.11,126.1,0.17]
[1767168712228,17.59204979,126.12,126.1,0.17]
[1767168714549,16.45194275,126.12,126.1,0.17]
[1767168715323,14.42,126.12,126.1,0.17]
[1767168715526,16.45194275,126.12,126.1,0.17]
[1767168716246,24.3809287,126.12,126.1,0.17]
[1767168718145,2.03194275,126.11,126.1,0.17]
[1767168718555,2.03194275,126.11,126.09,0.2]
[1767168721253,7.92860826,126.13,126.09,0.2]
[1767168721456,14.42,126.12,126.1,0.69]
[1767168723155,16.45194275,126.12,126.1,0.69]
[1767168728357,34.81574279,126.17,126.1,0.69]
[1767168728566,2.03194275,126.14,126.11,0.69]
[1767168729850,25.08962153,126.15,126.11,0.69]
[1767168730047,5.92075039,126.14,126.11,0.69]
[1767168730249,8.61767878,126.15,126.11,2.03194275]
[1767168730460,3.76168862,126.14,126.13,2.03194275]
[1767168730753,15.13,126.17,126.13,2.03194275]
[1767168731062,15.13,126.17,126.14,2.03194275]
[1767168733153,15.13,126.17,126.15,2.03194275]
[1767168736171,22.36581639,126.17,126.15,2.03194275]
[1767168736377,0.69,126.16,126.15,2.03194275]
[1767168736848,0.69,126.16,126.14,2.03194275]
[1767168740170,15.1,126.17,126.14,2.03194275]
[1767168740773,0.66,126.19,126.16,2.03194275]
[1767168740976,0.66,126.2,126.17,2.03194275]
[1767168741451,0.66,126.19,126.17,2.03194275]
[1767168741654,0.66,126.19,126.16,2.03194275]
[1767168741855,0.66,126.16,126.13,2.03194275]
[1767168742771,0.66,126.16,126.14,2.03194275]
[1767168743068,0.66,126.17,126.14,2.03194275]
[1767168743866,0.66,126.17,126.15,2.03194275]
[1767168744453,0.66,126.17,126.14,2.03194275]
[1767168746373,0.63006329,126.17,126.14,2.03194275]
[1767168747674,2.03194275,126.15,126.1,0.05]
[1767168747879,2.03194275,126.15,126.11,2.08194275]
[1767168748279,2.69194275,126.15,126.11,2.08194275]
[1767168748777,10.61901755,126.15,126.11,2.08194275]
[1767168749375,2.69194275,126.14,126.11,0.05]
[1767168749578,0.66,126.13,126.1,2.08194275]
[1767168750961,0.66,126.13,126.1,0.05]
[1767168751877,2.69194275,126.13,126.09,2.28194275]
[1767168752061,2.69194275,126.12,126.09,0.25]
[1767168756385,0.66,126.11,126.09,0.2]
[1767168756586,0.66,126.12,126.1,2.03194275]
[1767168756771,15.08,126.13,126.1,2.03194275]
[1767168757254,15.08,126.13,126.1,2.08194275]
[1767168757996,19.81874524,126.15,126.11,2.03194275]
[1767168757997,2.03194275,126.15,126.11,2.03194275]
[1767168758189,0.66,126.14,126.12,2.03194275]
[1767168758791,0.66,126.15,126.13,2.03194275]
[1767168762586,0.66,126.15,126.12,0.05]
[1767168762791,0.66,126.15,126.13,2.03194275]
[1767168763090,7.92644261,126.16,126.13,2.03194275]
[1767168763288,8.58518624,126.18,126.14,6.79e-06]
[1767168763501,6.5897638,126.17,126.14,6.53e-06]
[1767168763669,0.66,126.17,126.14,2.03194928]
[1767168766093,0.66,126.17,126.14,2.03194275]
[1767168766867,0.67,126.18,126.15,6.91e-06]
[1767168767067,5.93084432,126.17,126.15,6.91e-06]
[1767168767266,0.67,126.18,126.15,6.91e-06]
[1767168767467,6.6013652,126.17,126.15,6.91e-06]
[1767168767668,0.67,126.17,126.14,2.03194275]
[1767168770273,0.67,126.17,126.12,2.03194275]
[1767168770468,0.67,126.17,126.15,6.91e-06]
[1767168774596,0.67,126.17,126.15,3.17162781]
[1767168778903,7.92548661,126.18,126.15,3.17162781]
[1767168779086,6.60527343,126.17,126.15,3.17162781]
[1767168779404,6.60527343,126.17,126.12,11.10044581]
[1767168779405,0.67,126.17,126.14,3.17162781]
[1767168779584,0.67,126.17,126.13,3.17162781]
[1767168782086,0.67,126.17,126.14,3.17162781]
[1767168786812,0.67,126.17,126.11,7.92926464]
[1767168786991,0.67,126.17,126.14,3.17162781]
[1767168787318,0.67,126.17,126.1,7.93021411]
[1767168787486,0.67,126.17,126.14,3.17162781]
[1767168788304,7.92601002,126.17,126.14,3.17162781]
[1767168788500,0.67,126.16,126.14,3.17162781]
[1767168790318,0.67,126.16,126.1,7.93021411]
[1767168790611,0.67,126.16,126.13,3.17162781]
[1767168791220,0.67,126.16,126.1,7.93021411]
[1767168791412,0.67,126.16,126.13,3.17162781]
[1767168793211,0.67,126.16,126.14,3.17162781]
[1767168794818,22.34541332,126.18,126.14,3.17162781]
[1767168795026,5.93374294,126.17,126.15,3.17162781]
[1767168795215,0.67,126.17,126.15,3.17162781]
[1767168796314,0.67,126.17,126.12,11.10048748]
[1767168796620,0.67,126.17,126.15,3.17162781]
[1767168796918,0.67,126.17,126.14,3.17162781]
[1767168801708,8.59588176,126.17,126.14,3.17162781]
[1767168801914,0.72,126.16,126.14,3.17162781]
[1767168811136,5.950427,126.15,126.14,3.17162781]
[1767168811333,0.72,126.16,126.14,3.17162781]
[1767168821342,0.72,126.16,126.13,3.17162781]
[1767168822619,0.72,126.16,126.1,7.93021411]
[1767168822820,0.72,126.16,126.13,3.17162781]
[1767168827450,0.72,126.16,126.1,7.93021411]
[1767168827625,0.72,126.16,126.13,3.17162781]
[1767168828440,0.72,126.16,126.14,3.17162781]
[1767168832756,0.72,126.16,126.13,3.17162781]
[1767168833436,0.72,126.16,126.14,3.17162781]
[1767168836563,0.72,126.16,126.14,2.03009932]
[1767168836747,0.72,126.16,126.13,2.03009932]
[1767168840463,0.72,126.16,126.14,2.03009932]
[1767168841663,0.72,126.16,126.13,2.03009932]
[1767168842336,0.72,126.16,126.1,7.93021411]
[1767168842542,0.72,126.16,126.13,2.03009932]
[1767168845071,0.72,126.16,126.14,2.03009932]
[1767168849480,0.72,126.16,126.1,7.93021411]
[1767168849654,0.72,126.15,126.13,2.03009932]
[1767168854480,7.92518624,126.18,126.14,2.74009932]
[1767168854781,22.36518624,126.18,126.15,2.03009932]
[1767168855076,22.36518624,126.18,126.14,2.03009932]
[1767168855377,24.39528556,126.18,126.14,2.03009932]
[1767168855873,24.39528556,126.18,126.13,0.71]
[1767168855874,2.03009932,126.17,126.13,0.71]
[1767168856481,0.66,126.16,126.13,0.71]
[1767168856660,0.66,126.16,126.12,2.03009932]
[1767168856971,0.66,126.13,126.09,2.23009932]
[1767168857154,6.61193815,126.12,126.1,2.03009932]
[1767168857353,0.66,126.14,126.11,2.03009932]
[1767168857552,5.94908004,126.13,126.12,2.75009932]
[1767168857761,0.66,126.15,126.12,2.75009932]
[1767168862583,0.66,126.17,126.14,2.75009932]
[1767168865676,0.66,126.17,126.14,0.72]
[1767168865883,0.66,126.17,126.14,2.75009932]
[1767168868381,0.66,126.17,126.15,2.03009932]
[1767168869780,0.66,126.16,126.15,2.03009932]
[1767168872073,0.66,126.16,126.12,0.72]
[1767168872276,8.58644503,126.16,126.12,2.75009932]
[1767168872581,0.66,126.15,126.12,2.75009932]
[1767168873496,0.66,126.15,126.12,2.03009932]
[1767168873683,0.66,126.15,126.12,2.75009932]
[1767168873891,0.66,126.15,126.13,2.03009932]
[1767168874694,0.66,126.15,126.13,2.75009932]
[1767168876202,22.36524401,126.18,126.14,2.03009932]
[1767168876503,0.66,126.17,126.14,2.75009932]
[1767168878503,0.66,126.17,126.14,0.72]
[1767168878686,0.66,126.18,126.15,2.75009932]
[1767168881504,0.66,126.18,126.15,0.72]
[1767168883212,0.66,126.18,126.15,2.75009932]
[1767168883419,0.66,126.18,126.12,9.95868758]
[1767168883420,15.1,126.19,126.14,0.72]
[1767168883715,15.1,126.19,126.16,2.75009932]
[1767168884222,0.66,126.19,126.16,2.75009932]
[1767168885013,0.66,126.19,126.16,0.72]
[1767168886829,0.66,126.19,126.16,2.75009932]
[1767168891546,0.66,126.19,126.16,0.72]
[1767168891750,0.66,126.19,126.16,2.75009932]
[1767168895541,8.59361033,126.21,126.18,0.68]
[1767168895724,23.03361033,126.21,126.18,0.68]
[1767168896542,22.36361033,126.21,126.18,0.68]
[1767168896742,0.67,126.2,126.18,0.68]
[1767168897626,0.67,126.2,126.17,2.71009932]
[1767168898638,11.09234721,126.23,126.19,3.85030016]
[1767168898838,3.84030016,126.22,126.19,0.68]
[1767168901347,11.76334775,126.22,126.19,0.68]
[1767168903245,11.76334775,126.22,126.14,0.66]
[1767168903246,3.17030016,126.2,126.14,0.66]
[1767168903445,3.86030016,126.19,126.16,0.66]
[1767168904447,18.30030016,126.2,126.16,0.66]
[1767168905051,26.22478791,126.2,126.16,0.66]
[1767168905344,26.22478791,126.2,126.16,3.17030016]
[1767168905548,26.22478791,126.2,126.17,0.66]
[1767168907742,15.13,126.2,126.17,3.83030016]
[1767168908744,23.05397631,126.2,126.17,0.66]
[1767168908958,0.69,126.19,126.16,0.66]
[1767168911552,7.92458867,126.19,126.16,0.66]
[1767168911868,0.69,126.18,126.15,3.83030016]
[1767168912239,8.61531609,126.18,126.15,3.83030016]
[1767168912624,8.61531609,126.18,126.16,0.66]
[1767168915156,8.61531609,126.18,126.15,3.83030016]
[1767168915356,0.69,126.18,126.16,0.66]
[1767168916245,8.6148431,126.19,126.16,0.66]
[1767168916963,8.6148431,126.19,126.16,3.83030016]
[1767168920262,0.66,126.18,126.16,3.83030016]
[1767168920873,0.66,126.18,126.16,0.66]
[1767168921168,0.66,126.18,126.16,3.83030016]
[1767168922969,0.66,126.18,126.16,0.66]
[1767168923148,0.66,126.18,126.15,3.84030016]
[1767168923347,0.66,126.16,126.13,3.17030016]
[1767168923548,3.83030016,126.16,126.13,0.67]
[1767168923956,0.66,126.16,126.13,3.84030016]
[1767168924259,3.83030016,126.16,126.13,0.67]
[1767168925160,0.66,126.16,126.13,3.84030016]
[1767168929083,0.66,126.16,126.11,3.17030016]
[1767168929084,3.17030016,126.15,126.11,3.17030016]
[1767168929263,0.66,126.14,126.12,0.67]
[1767168930268,0.66,126.14,126.12,3.84030016]
[1767168930472,0.66,126.15,126.12,3.84030016]
[1767168930861,0.37223674,126.15,126.12,3.84030016]
[1767168932584,3.5425369,126.15,126.12,0.67]
[1767168933375,0.37223674,126.15,126.12,0.67]
[1767168936783,3.5425369,126.15,126.12,0.67]
[1767168936988,3.83030016,126.14,126.11,0.67]
[1767168942195,3.17030016,126.14,126.09,3.37030016]
[1767168942368,0.66,126.13,126.1,0.67]
[1767168943073,3.83030016,126.13,126.1,0.67]
[1767168943284,3.83030016,126.12,126.09,0.87]
[1767168943968,3.83030016,126.12,126.09,0.2]
[1767168944287,3.83030016,126.12,126.1,0.67]
[1767168945269,11.09907657,126.13,126.1,0.67]
[1767168945470,3.83030016,126.13,126.1,0.67]
[1767168945772,0.66,126.13,126.1,0.67]
[1767168947178,0.66,126.13,126.1,3.84030016]
[1767168947369,0.66,126.13,126.11,0.69]
[1767168948186,0.66,126.13,126.1,3.86030016]
[1767168950488,11.0976191,126.15,126.11,0.69]
[1767168950784,15.16,126.14,126.12,0.69]
[1767168959903,26.25862313,126.14,126.12,0.69]
[1767168960196,3.89030016,126.13,126.1,0.69]
[1767168960593,2.75166708,126.13,126.1,0.69]
[1767168962179,0.68,126.12,126.1,0.69]
[1767168962707,0.68,126.12,126.09,2.23166708]
[1767168962708,2.71166708,126.11,126.09,0.2]
[1767168963687,2.71166708,126.11,126.09,0.92]
[1767168963901,0.68,126.11,126.09,0.92]
[1767168966082,10.64065047,126.12,126.09,0.92]
[1767168966282,24.40004282,126.13,126.1,0.72]
[1767168966489,0.68,126.12,126.1,0.72]
[1767168967791,0.68,126.12,126.09,0.92]
[1767168975123,2.71166708,126.12,126.09,0.92]
[1767168976526,2.03166708,126.11,126.09,0.2]
[1767168976722,0.7,126.1,126.09,0.2]
[1767168977221,2.73166708,126.1,126.07,0.72]
[1767168977803,2.73166708,126.1,126.06,0.72]
[1767168979735,2.03166708,126.1,126.06,0.72]
[1767168979909,0.7,126.09,126.06,0.72]
[1767168981423,2.03166708,126.09,126.05,2.23166708]
[1767168981616,0.7,126.08,126.05,2.95166708]
[1767168982017,0.7,126.08,126.06,0.72]
[1767168982430,0.7,126.07,126.05,0.2]
[1767168982632,2.73166708,126.07,126.05,0.2]
[1767168983717,2.73166708,126.07,126.05,0.92]
[1767168984820,15.14,126.09,126.06,0.72]
[1767168985131,17.17166708,126.09,126.06,0.72]
[1767168985312,2.73166708,126.09,126.06,0.72]
[1767168988411,0.7,126.08,126.06,0.72]
[1767168988821,0.7,126.08,126.05,2.23166708]
[1767168988822,2.73166708,126.08,126.05,0.92]
[1767168989519,0.7,126.08,126.05,0.92]
[1767168989719,2.73166708,126.08,126.05,0.92]
[1767168990214,0.7,126.08,126.05,0.2]
[1767168990424,0.7,126.09,126.06,0.72]
[1767168990745,0.7,126.08,126.06,0.72]
[1767168993350,2.73166708,126.08,126.06,0.72]
[1767168993736,0.7,126.08,126.06,0.72]
[1767168994046,2.73166708,126.08,126.06,0.72]
[1767168999857,9.96264427,126.09,126.06,0.72]
[1767169000156,2.03166708,126.13,126.09,0.72]
[1767169000336,0.7,126.12,126.09,2.75166708]
[1767169001560,0.7,126.12,126.1,0.72]
[1767169001867,8.62851421,126.13,126.1,0.72]
[1767169002551,10.66018129,126.13,126.1,0.72]
[1767169005445,8.62851421,126.13,126.1,0.72]
[1767169005750,10.66018129,126.13,126.1,0.72]
[1767169006862,9.96018129,126.13,126.1,0.72]
[1767169007077,0.71,126.12,126.1,0.72]
[1767169013864,40.92484794,126.15,126.11,2.69166708]
[1767169013865,8.63779964,126.14,126.11,2.69166708]
[1767169014273,8.63779964,126.14,126.12,0.66]
[1767169014643,8.63779964,126.14,126.11,2.69166708]
[1767169017273,8.63688487,126.16,126.13,0.66]
[1767169017472,8.63688487,126.16,126.13,2.66205533]
[1767169017473,0.71,126.16,126.13,2.66205533]
[1767169018169,8.63647282,126.16,126.13,2.66205533]
[1767169018679,0.71,126.15,126.13,2.66205533]
[1767169019258,0.71,126.15,126.13,0.63038825]
[1767169022480,0.71,126.15,126.12,3.89302108]
[1767169022874,11.81013736,126.15,126.12,0.72]
[1767169025789,8.63711628,126.15,126.12,0.72]
[1767169027264,8.63711628,126.15,126.12,3.89302108]
[1767169029285,0.71,126.15,126.12,3.89302108]
[1767169031889,0.71,126.15,126.13,3.17302108]
[1767169032070,0.71,126.15,126.13,3.89302108]
[1767169033488,0.68,126.16,126.14,0.72]
[1767169033688,0.68,126.16,126.13,3.89302108]
[1767169039811,8.60645907,126.16,126.13,3.89302108]
[1767169041713,0.68,126.15,126.13,3.89302108]
[1767169045515,0.68,126.14,126.1,0.67]
[1767169045726,0.68,126.14,126.11,3.84302108]
[1767169046495,0.68,126.14,126.12,0.67]
[1767169046915,11.78015292,126.15,126.12,0.67]
[1767169047803,11.10015292,126.15,126.12,0.67]
[1767169048004,0.68,126.14,126.12,0.67]
[1767169053828,0.68,126.14,126.1,3.17302108]
[1767169054009,0.68,126.14,126.11,0.67]
[1767169056128,3.85302108,126.14,126.11,0.67]
[1767169057529,0.68,126.14,126.12,0.67]
[1767169057839,15.12,126.15,126.12,3.84302108]
[1767169061339,15.12,126.15,126.12,0.67]
[1767169063341,18.29302108,126.15,126.12,0.67]
[1767169066243,0.68,126.14,126.12,0.67]
[1767169077376,14.44,126.15,126.13,0.71]
[1767169077940,15.1,126.15,126.13,0.71]
[1767169078561,15.1,126.15,126.12,3.88302108]
[1767169080254,15.1,126.15,126.12,0.71]
[1767169080462,0.66,126.14,126.11,0.71]
[1767169081843,0.66,126.14,126.12,0.71]
[1767169093975,8.58771113,126.14,126.09,0.71]
[1767169094280,0.72,126.13,126.1,0.71]
[1767169095472,22.36733963,126.15,126.1,2.03106529]
[1767169095656,0.72,126.14,126.11,0.71]
[1767169098872,14.44,126.15,126.11,0.71]
[1767169099069,15.16,126.15,126.12,0.69]
[1767169101974,15.16,126.15,126.12,2.72106529]
[1767169102886,14.44,126.15,126.13,2.72106529]
[1767169103294,15.16,126.16,126.13,2.72106529]
[1767169105481,14.44,126.16,126.13,2.72106529]
[1767169105680,14.44,126.16,126.14,0.69]
[1767169106576,15.16,126.16,126.14,0.69]
[1767169108087,15.16,126.16,126.13,2.03106529]
[1767169108265,15.16,126.16,126.13,2.72106529]
[1767169110286,25.11784733,126.16,126.13,0.69]
[1767169112487,24.39784733,126.16,126.11,2.03106529]
[1767169112786,0.72,126.15,126.12,0.69]
[1767169116089,0.72,126.15,126.12,2.72106529]
[1767169116893,0.72,126.15,126.12,0.69]
[1767169117375,2.75106529,126.15,126.12,0.69]
[1767169122303,0.72,126.15,126.12,0.69]
[1767169126300,14.44,126.16,126.13,2.03106529]
[1767169126598,14.44,126.16,126.14,0.69]
[1767169127191,15.13,126.16,126.14,0.69]
[1767169127500,14.44,126.16,126.14,0.69]
[1767169128101,0.69,126.17,126.14,2.03106529]
[1767169128275,0.69,126.17,126.15,0.69]
[1767169128804,0.69,126.19,126.17,0.69]
[1767169128970,0.69,126.19,126.17,0.66083097]
[1767169129792,0.69,126.19,126.16,2.03106529]
[1767169130985,0.69,126.19,126.16,2.72106529]
[1767169134099,2.72106529,126.2,126.17,0.69]
[1767169134490,2.03106529,126.2,126.17,0.69]
[1767169134695,0.69,126.19,126.17,0.69]
[1767169135902,2.72106529,126.19,126.16,0.69]
[1767169136100,0.69,126.18,126.16,0.69]
[1767169136705,2.03106529,126.19,126.16,0.69]
[1767169136907,2.72106529,126.19,126.16,0.69]
[1767169139595,17.16106529,126.19,126.16,0.69]
[1767169141112,24.39565026,126.19,126.16,0.69]
[1767169141407,2.72106529,126.18,126.15,0.69]
[1767169141588,0.66,126.17,126.15,0.69]
[1767169141787,2.03106529,126.18,126.15,0.69]
[1767169141983,2.69106529,126.18,126.15,0.69]
[1767169142709,0.66,126.18,126.15,0.69]
[1767169142895,3.8317034,126.18,126.15,0.69]
[1767169143412,0.66,126.18,126.15,0.69]
[1767169145793,0.66,126.18,126.15,3.8617034]
[1767169148698,0.66,126.18,126.15,0.69]
[1767169148699,11.09689958,126.18,126.15,0.69]
[1767169148916,11.75689958,126.18,126.15,0.69]
[1767169149512,8.58519618,126.18,126.15,0.69]
[1767169150611,7.92519618,126.18,126.15,0.69]
[1767169150818,0.66,126.17,126.15,0.69]
[1767169153717,11.75689958,126.18,126.15,0.69]
[1767169156021,0.66,126.18,126.16,0.69]
[1767169164927,3.8317034,126.18,126.16,0.69]